[Event "*** Titled Tuesday Blitz"]
[Site "Chess.com"]
[Date "2021.03.02"]
[Round "3"]
[White "Kotofeyca"]
[Black "cukin84"]
[Result "1-0"]
[WhiteElo "2390"]
[BlackElo "2139"]
[TimeControl "180+1"]
[EndTime "10:28:33 PST"]
[Termination "Kotofeyca won by resignation"]

1. d4 {[%clk 0:02:53]} 1... f5 {[%clk 0:02:59.2]} 2. Nc3 {[%clk 0:02:52.2]} 2...
Nf6 {[%clk 0:02:58.9]} 3. Bg5 {[%clk 0:02:52.2]} 3... g6 {[%clk 0:02:57.8]} 4.
Bxf6 {[%clk 0:02:51]} 4... exf6 {[%clk 0:02:57.9]} 5. e3 {[%clk 0:02:51.6]} 5...
d5 {[%clk 0:02:57.6]} 6. Bd3 {[%clk 0:02:52]} 6... c6 {[%clk 0:02:56.9]} 7. Qf3
{[%clk 0:02:52.6]} 7... Bd6 {[%clk 0:02:54.3]} 8. h4 {[%clk 0:02:53.1]} 8... h5
{[%clk 0:02:52.8]} 9. Nge2 {[%clk 0:02:53.2]} 9... Be6 {[%clk 0:02:43.4]} 10.
Nf4 {[%clk 0:02:50.9]} 10... Bxf4 {[%clk 0:02:41.4]} 11. Qxf4 {[%clk 0:02:42.8]}
11... Nd7 {[%clk 0:02:34.4]} 12. O-O-O {[%clk 0:02:40.2]} 12... Qe7 {[%clk
0:02:31.6]} 13. Kb1 {[%clk 0:02:30.2]} 13... O-O-O {[%clk 0:02:29.8]} 14. Na4
{[%clk 0:02:08.5]} 14... Nb6 {[%clk 0:02:26.5]} 15. Nc5 {[%clk 0:02:02.1]} 15...
Qd6 {[%clk 0:02:22.6]} 16. Qxd6 {[%clk 0:01:30]} 16... Rxd6 {[%clk 0:02:20.6]}
17. b3 {[%clk 0:01:30]} 17... Re8 {[%clk 0:02:17.1]} 18. Rc1 {[%clk 0:01:25]}
18... Bf7 {[%clk 0:02:15.7]} 19. g3 {[%clk 0:01:15.2]} 19... Kc7 {[%clk
0:02:13.7]} 20. c4 {[%clk 0:01:05.2]} 20... dxc4 {[%clk 0:02:12.6]} 21. bxc4
{[%clk 0:01:05]} 21... Nd7 {[%clk 0:02:08.6]} 22. Nxd7 {[%clk 0:01:02.1]} 22...
Rxd7 {[%clk 0:02:08.3]} 23. Rc3 {[%clk 0:00:54.1]} 23... b6 {[%clk 0:02:03.7]}
24. Kc2 {[%clk 0:00:47.9]} 24... a6 {[%clk 0:01:59.5]} 25. a4 {[%clk 0:00:46.8]}
25... Rb8 {[%clk 0:01:37.8]} 26. Rb1 {[%clk 0:00:42.6]} 26... Kd8 {[%clk
0:01:33.8]} 27. a5 {[%clk 0:00:18.2]} 27... b5 {[%clk 0:01:32]} 28. cxb5 {[%clk
0:00:17.8]} 28... cxb5 {[%clk 0:01:32.2]} 29. Kb2 {[%clk 0:00:17.3]} 29... Rc7
{[%clk 0:01:28.2]} 30. Rbc1 {[%clk 0:00:17.4]} 30... Rbc8 {[%clk 0:01:27.7]} 31.
Be2 {[%clk 0:00:14.4]} 31... Bd5 {[%clk 0:01:22.9]} 32. Rc5 {[%clk 0:00:12.9]}
32... Rxc5 {[%clk 0:01:22.2]} 33. Rxc5 {[%clk 0:00:13.8]} 33... Rxc5 {[%clk
0:01:22.2]} 34. dxc5 {[%clk 0:00:14.7]} 34... Kd7 {[%clk 0:01:22.7]} 35. Kc3
{[%clk 0:00:15.2]} 35... Kc6 {[%clk 0:01:22.9]} 36. Kd4 {[%clk 0:00:15.2]} 36...
Be4 {[%clk 0:01:21]} 37. Bd1 {[%clk 0:00:14.2]} 37... Bg2 {[%clk 0:01:13.9]} 38.
Bb3 {[%clk 0:00:13.8]} 38... Bf3 {[%clk 0:01:10.8]} 39. Bf7 {[%clk 0:00:13.2]}
39... g5 {[%clk 0:01:09.6]} 40. Be8+ {[%clk 0:00:11.7]} 40... Kc7 {[%clk
0:01:01.2]} 41. Bg6 {[%clk 0:00:11.4]} 41... f4 {[%clk 0:00:56.5]} 42. Bf5
{[%clk 0:00:05.1]} 42... fxg3 {[%clk 0:00:55.2]} 43. fxg3 {[%clk 0:00:04.5]}
43... gxh4 {[%clk 0:00:55.3]} 44. gxh4 {[%clk 0:00:05.4]} 44... b4 {[%clk
0:00:54.2]} 45. Kc4 {[%clk 0:00:04.8]} 45... Kc6 {[%clk 0:00:51.5]} 46. Kxb4
{[%clk 0:00:05.1]} 46... Kd5 {[%clk 0:00:50.5]} 47. Bd3 {[%clk 0:00:05.4]} 47...
Bg2 {[%clk 0:00:47.6]} 48. Bxa6 {[%clk 0:00:05.5]} 48... Ke4 {[%clk 0:00:47.5]}
49. Bb7+ {[%clk 0:00:05.5]} 49... Kxe3 {[%clk 0:00:47.8]} 50. Bxg2 {[%clk
0:00:06.4]} 50... f5 {[%clk 0:00:47.8]} 51. c6 {[%clk 0:00:06.2]} 51... f4
{[%clk 0:00:48.3]} 52. c7 {[%clk 0:00:06.5]} 52... f3 {[%clk 0:00:48.8]} 53.
Bxf3 {[%clk 0:00:06.8]} 53... Kxf3 {[%clk 0:00:49.1]} 54. c8=Q {[%clk
0:00:07.7]} 1-0

[Event "*** Titled Tuesday Blitz"]
[Site "Chess.com"]
[Date "2021.03.02"]
[Round "3"]
[White "Jan1401"]
[Black "kubal123"]
[Result "0-1"]
[WhiteElo "2387"]
[BlackElo "2215"]
[TimeControl "180+1"]
[EndTime "10:28:33 PST"]
[Termination "kubal123 won by resignation"]

1. e4 {[%clk 0:03:00.9]} 1... c5 {[%clk 0:03:00.3]} 2. Nf3 {[%clk 0:03:00.7]}
2... e6 {[%clk 0:03:00]} 3. b3 {[%clk 0:03:00.1]} 3... b6 {[%clk 0:02:58.5]} 4.
Bb2 {[%clk 0:02:55.4]} 4... Bb7 {[%clk 0:02:58.9]} 5. Nc3 {[%clk 0:02:54.9]}
5... Nc6 {[%clk 0:02:55.8]} 6. d4 {[%clk 0:02:54.1]} 6... cxd4 {[%clk
0:02:55.8]} 7. Nxd4 {[%clk 0:02:54.3]} 7... Bc5 {[%clk 0:02:46.7]} 8. Nxc6
{[%clk 0:02:43]} 8... Bxc6 {[%clk 0:02:47.6]} 9. Bd3 {[%clk 0:02:34.1]} 9... Nf6
{[%clk 0:02:42.2]} 10. O-O {[%clk 0:02:28]} 10... h5 {[%clk 0:02:36.9]} 11. Qe2
{[%clk 0:02:20.5]} 11... Qc7 {[%clk 0:02:31.8]} 12. Na4 {[%clk 0:02:12]} 12...
Ng4 {[%clk 0:02:19.5]} 13. g3 {[%clk 0:02:09.1]} 13... Bxa4 {[%clk 0:02:17.7]}
14. bxa4 {[%clk 0:02:08.2]} 14... Ne5 {[%clk 0:02:14.1]} 15. Ba6 {[%clk
0:01:58.1]} 15... h4 {[%clk 0:02:09.4]} 16. Kg2 {[%clk 0:01:51.1]} 16... hxg3
{[%clk 0:01:40.6]} 17. hxg3 {[%clk 0:01:49.6]} 17... Ke7 {[%clk 0:01:25.9]} 18.
f4 {[%clk 0:01:45.8]} 18... Ng6 {[%clk 0:01:25]} 19. f5 {[%clk 0:01:25.4]} 19...
Ne5 {[%clk 0:01:14.3]} 20. Rh1 {[%clk 0:01:15.7]} 20... f6 {[%clk 0:01:05.4]}
21. Bb5 {[%clk 0:01:09.8]} 21... Qb7 {[%clk 0:00:55.2]} 22. Bxe5 {[%clk
0:01:01.1]} 22... fxe5 {[%clk 0:00:53.3]} 23. Qg4 {[%clk 0:01:01.1]} 23... Rhg8
{[%clk 0:00:18.3]} 24. Rad1 {[%clk 0:00:55.1]} 24... Bd4 {[%clk 0:00:18.2]} 25.
c3 {[%clk 0:00:32.9]} 25... exf5 {[%clk 0:00:14.6]} 26. Qxf5 {[%clk 0:00:29]}
26... Raf8 {[%clk 0:00:15.1]} 27. Qg5+ {[%clk 0:00:18]} 27... Rf6 {[%clk
0:00:15.3]} 28. Rdf1 {[%clk 0:00:12.8]} 28... Qxe4+ {[%clk 0:00:14.5]} 29. Kh3
{[%clk 0:00:09]} 29... Rh8+ {[%clk 0:00:14.9]} 30. Qh4 {[%clk 0:00:09.4]} 30...
Rxh4+ {[%clk 0:00:14.8]} 31. gxh4 {[%clk 0:00:09.8]} 31... Qe3+ {[%clk
0:00:13.3]} 32. Kg2 {[%clk 0:00:09.3]} 32... Rf2+ {[%clk 0:00:13]} 33. Rxf2
{[%clk 0:00:09.2]} 33... Qxf2+ {[%clk 0:00:13.9]} 34. Kh3 {[%clk 0:00:09.1]}
34... Qf3+ {[%clk 0:00:13.8]} 35. Kh2 {[%clk 0:00:09.5]} 35... Be3 {[%clk
0:00:12.9]} 36. Rg1 {[%clk 0:00:07.2]} 36... Bf4+ {[%clk 0:00:12.8]} 0-1

[Event "*** Titled Tuesday Blitz"]
[Site "Chess.com"]
[Date "2021.03.02"]
[Round "3"]
[White "kekic76"]
[Black "Malev212"]
[Result "0-1"]
[WhiteElo "2373"]
[BlackElo "2566"]
[TimeControl "180+1"]
[EndTime "10:28:35 PST"]
[Termination "Malev212 won by resignation"]

1. e4 {[%clk 0:03:00.9]} 1... e6 {[%clk 0:02:56.2]} 2. d4 {[%clk 0:03:00.5]}
2... d5 {[%clk 0:02:55.7]} 3. exd5 {[%clk 0:03:01.4]} 3... exd5 {[%clk 0:02:55]}
4. Bd3 {[%clk 0:03:01.5]} 4... Nf6 {[%clk 0:02:52.2]} 5. Ne2 {[%clk 0:03:00.6]}
5... c5 {[%clk 0:02:47.7]} 6. c3 {[%clk 0:02:56.7]} 6... Nc6 {[%clk 0:02:44.5]}
7. O-O {[%clk 0:02:55.1]} 7... Be7 {[%clk 0:02:42.5]} 8. h3 {[%clk 0:02:53.9]}
8... O-O {[%clk 0:02:41.8]} 9. Be3 {[%clk 0:02:53.7]} 9... c4 {[%clk 0:02:39.8]}
10. Bc2 {[%clk 0:02:51.4]} 10... b5 {[%clk 0:02:39.6]} 11. a3 {[%clk 0:02:51.1]}
11... a5 {[%clk 0:02:32.5]} 12. Nd2 {[%clk 0:02:50.7]} 12... Ra6 {[%clk
0:02:21.2]} 13. Nf3 {[%clk 0:02:50.4]} 13... b4 {[%clk 0:02:19.9]} 14. axb4
{[%clk 0:02:50.2]} 14... axb4 {[%clk 0:02:19.4]} 15. Rxa6 {[%clk 0:02:49.5]}
15... Bxa6 {[%clk 0:02:19.2]} 16. Ne5 {[%clk 0:02:49.7]} 16... Bb7 {[%clk
0:02:15.9]} 17. f4 {[%clk 0:02:30.8]} 17... bxc3 {[%clk 0:02:03]} 18. bxc3
{[%clk 0:02:31.3]} 18... Qc7 {[%clk 0:01:43.4]} 19. Qd2 {[%clk 0:02:22.7]} 19...
Ra8 {[%clk 0:01:42.3]} 20. Rb1 {[%clk 0:02:16.7]} 20... g6 {[%clk 0:01:34.5]}
21. Nxc6 {[%clk 0:01:57.9]} 21... Bxc6 {[%clk 0:01:33]} 22. f5 {[%clk
0:01:57.6]} 22... Ra2 {[%clk 0:01:25]} 23. Bf4 {[%clk 0:01:49.3]} 23... Qd7
{[%clk 0:01:14.5]} 24. Rb8+ {[%clk 0:01:42.5]} 24... Ne8 {[%clk 0:01:13.7]} 25.
fxg6 {[%clk 0:01:20]} 25... hxg6 {[%clk 0:01:12.5]} 26. Qc1 {[%clk 0:01:16.4]}
26... Bd6 {[%clk 0:01:01.5]} 27. Bxd6 {[%clk 0:01:12.5]} 27... Qxd6 {[%clk
0:01:00.6]} 28. Rb4 {[%clk 0:00:50.5]} 28... Kg7 {[%clk 0:00:56.2]} 29. Qb1
{[%clk 0:00:37.4]} 29... Ra8 {[%clk 0:00:53.4]} 30. Qf1 {[%clk 0:00:28.9]} 30...
Nf6 {[%clk 0:00:51.3]} 31. Qf2 {[%clk 0:00:19.8]} 31... Ra2 {[%clk 0:00:46.6]}
32. Ng3 {[%clk 0:00:18.8]} 32... Rxc2 {[%clk 0:00:44.2]} 33. Nf5+ {[%clk
0:00:17]} 33... gxf5 {[%clk 0:00:43.6]} 34. Qxc2 {[%clk 0:00:17.9]} 34... Ne4
{[%clk 0:00:42.7]} 35. Rb1 {[%clk 0:00:18.3]} 35... Bd7 {[%clk 0:00:41.5]} 36.
Rf1 {[%clk 0:00:18.4]} 36... Be6 {[%clk 0:00:39.2]} 37. Rf3 {[%clk 0:00:19.3]}
37... Qa3 {[%clk 0:00:37.5]} 38. Kh2 {[%clk 0:00:18.2]} 38... Qa1 {[%clk
0:00:36.3]} 39. h4 {[%clk 0:00:14.9]} 39... Qe1 {[%clk 0:00:35.2]} 40. Rh3
{[%clk 0:00:14.5]} 40... f4 {[%clk 0:00:33.7]} 41. h5 {[%clk 0:00:14.2]} 41...
Bxh3 {[%clk 0:00:32.2]} 42. gxh3 {[%clk 0:00:10.6]} 42... Qg3+ {[%clk 0:00:31]}
43. Kh1 {[%clk 0:00:10.8]} 43... Nf2+ {[%clk 0:00:30.5]} 0-1

[Event "*** Titled Tuesday Blitz"]
[Site "Chess.com"]
[Date "2021.03.02"]
[Round "3"]
[White "Bodnar_Mykola"]
[Black "marvinguevara"]
[Result "1-0"]
[WhiteElo "2482"]
[BlackElo "2124"]
[TimeControl "180+1"]
[EndTime "10:28:35 PST"]
[Termination "Bodnar_Mykola won by checkmate"]

1. d4 {[%clk 0:03:00.9]} 1... f5 {[%clk 0:02:59.3]} 2. Bg5 {[%clk 0:02:58.8]}
2... h6 {[%clk 0:02:58.5]} 3. Bh4 {[%clk 0:02:58.6]} 3... g5 {[%clk 0:02:59]} 4.
Bg3 {[%clk 0:02:59]} 4... d6 {[%clk 0:02:55.1]} 5. e3 {[%clk 0:02:55.3]} 5...
Bg7 {[%clk 0:02:54.9]} 6. Bc4 {[%clk 0:02:53.1]} 6... Nf6 {[%clk 0:02:48.3]} 7.
Nc3 {[%clk 0:02:50.8]} 7... c6 {[%clk 0:02:46.7]} 8. h4 {[%clk 0:02:47.5]} 8...
g4 {[%clk 0:02:43.3]} 9. Nge2 {[%clk 0:02:46.6]} 9... Nh5 {[%clk 0:02:42.7]} 10.
Qd2 {[%clk 0:02:42.4]} 10... b5 {[%clk 0:02:36.7]} 11. Bb3 {[%clk 0:02:41.9]}
11... a5 {[%clk 0:02:35.6]} 12. a4 {[%clk 0:02:20.2]} 12... b4 {[%clk
0:02:34.5]} 13. Na2 {[%clk 0:02:19.7]} 13... Ba6 {[%clk 0:02:31.3]} 14. Nac1
{[%clk 0:02:19.1]} 14... Nd7 {[%clk 0:02:20]} 15. Nd3 {[%clk 0:02:16.6]} 15...
Ndf6 {[%clk 0:02:09.8]} 16. Ndf4 {[%clk 0:01:48.7]} 16... Ne4 {[%clk 0:02:01.2]}
17. Qd1 {[%clk 0:01:47.8]} 17... Nhxg3 {[%clk 0:01:47.6]} 18. Nxg3 {[%clk
0:01:47.4]} 18... Bc8 {[%clk 0:01:22.9]} 19. Nxe4 {[%clk 0:01:42.5]} 19... fxe4
{[%clk 0:01:21.6]} 20. Be6 {[%clk 0:01:42.2]} 20... h5 {[%clk 0:01:16.2]} 21. c3
{[%clk 0:01:21]} 21... Rh6 {[%clk 0:01:07.4]} 22. Qb3 {[%clk 0:01:13.5]} 22...
Rb8 {[%clk 0:01:00]} 23. Bxc8 {[%clk 0:00:52.8]} 23... Qxc8 {[%clk 0:00:56.3]}
24. Qg8+ {[%clk 0:00:53.2]} 24... Bf8 {[%clk 0:00:50.7]} 25. cxb4 {[%clk
0:00:48.1]} 25... Rxb4 {[%clk 0:00:47.9]} 26. O-O {[%clk 0:00:41.8]} 26... Qf5
{[%clk 0:00:40.2]} 27. Rac1 {[%clk 0:00:39.3]} 27... Kd7 {[%clk 0:00:36]} 28. d5
{[%clk 0:00:29.9]} 28... cxd5 {[%clk 0:00:28.4]} 29. Nxd5 {[%clk 0:00:27.8]}
29... Rb7 {[%clk 0:00:17.5]} 30. Nf4 {[%clk 0:00:22.3]} 30... e6 {[%clk
0:00:14]} 31. Nxe6 {[%clk 0:00:19.2]} 31... Rxe6 {[%clk 0:00:10.9]} 32. Rfd1
{[%clk 0:00:19.4]} 32... Ke7 {[%clk 0:00:09.1]} 33. Rc8 {[%clk 0:00:18.3]} 33...
Rf6 {[%clk 0:00:06.9]} 34. Rd2 {[%clk 0:00:16.6]} 34... Rd7 {[%clk 0:00:05.6]}
35. Qc4 {[%clk 0:00:16.3]} 35... Re6 {[%clk 0:00:03.7]} 36. Rc2 {[%clk
0:00:16.1]} 36... Rf6 {[%clk 0:00:03.6]} 37. Rb8 {[%clk 0:00:16.5]} 37... Re6
{[%clk 0:00:03.6]} 38. Qc8 {[%clk 0:00:16.8]} 38... Rf6 {[%clk 0:00:03]} 39.
Qe8# {[%clk 0:00:16.9]} 1-0

[Event "*** Titled Tuesday Blitz"]
[Site "Chess.com"]
[Date "2021.03.02"]
[Round "3"]
[White "Michaelson_11"]
[Black "googlegoom"]
[Result "0-1"]
[WhiteElo "2273"]
[BlackElo "2471"]
[TimeControl "180+1"]
[EndTime "10:28:35 PST"]
[Termination "googlegoom won by resignation"]

1. e4 {[%clk 0:03:00.9]} 1... c5 {[%clk 0:02:59.5]} 2. Nf3 {[%clk 0:02:59]} 2...
Nc6 {[%clk 0:02:58.7]} 3. d4 {[%clk 0:02:59.6]} 3... cxd4 {[%clk 0:02:59.3]} 4.
Nxd4 {[%clk 0:03:00.5]} 4... Qb6 {[%clk 0:02:59.9]} 5. Nb3 {[%clk 0:02:59.6]}
5... Nf6 {[%clk 0:03:00.5]} 6. Nc3 {[%clk 0:02:59.9]} 6... e6 {[%clk 0:03:00.7]}
7. Bd3 {[%clk 0:03:00.1]} 7... d6 {[%clk 0:03:00.7]} 8. Qe2 {[%clk 0:02:59.9]}
8... a6 {[%clk 0:03:00.9]} 9. Bd2 {[%clk 0:02:57.6]} 9... Qc7 {[%clk 0:03:01.1]}
10. O-O-O {[%clk 0:02:57]} 10... b5 {[%clk 0:03:01.7]} 11. f4 {[%clk 0:02:56.8]}
11... Bb7 {[%clk 0:03:01.5]} 12. a3 {[%clk 0:02:56]} 12... b4 {[%clk 0:03:01.1]}
13. axb4 {[%clk 0:02:54.4]} 13... Nxb4 {[%clk 0:03:02]} 14. g4 {[%clk
0:02:52.1]} 14... Be7 {[%clk 0:02:51.9]} 15. g5 {[%clk 0:02:46.1]} 15... Nd7
{[%clk 0:02:51.6]} 16. Kb1 {[%clk 0:02:31.9]} 16... Nb6 {[%clk 0:02:22.1]} 17.
Rhf1 {[%clk 0:01:55.2]} 17... d5 {[%clk 0:02:01.3]} 18. exd5 {[%clk 0:01:37.3]}
18... N6xd5 {[%clk 0:01:59.3]} 19. Nxd5 {[%clk 0:01:30.2]} 19... Bxd5 {[%clk
0:01:58.9]} 20. Bxb4 {[%clk 0:01:19.6]} 20... Bxb4 {[%clk 0:01:55.9]} 21. Be4
{[%clk 0:01:13.9]} 21... Bc4 {[%clk 0:01:33.7]} 22. Qf3 {[%clk 0:00:55.6]} 22...
Rb8 {[%clk 0:01:25.5]} 23. Bc6+ {[%clk 0:00:39.5]} 23... Kf8 {[%clk 0:01:25.8]}
24. f5 {[%clk 0:00:33]} 24... Kg8 {[%clk 0:00:55.4]} 25. f6 {[%clk 0:00:18.4]}
25... Bxf1 {[%clk 0:00:48.4]} 26. fxg7 {[%clk 0:00:16.4]} 26... Kxg7 {[%clk
0:00:46.5]} 27. Rxf1 {[%clk 0:00:17.3]} 27... Rhc8 {[%clk 0:00:35.4]} 28. Qf6+
{[%clk 0:00:16.9]} 28... Kg8 {[%clk 0:00:35.4]} 29. Be4 {[%clk 0:00:17.3]} 29...
Bf8 {[%clk 0:00:29.9]} 30. Rf3 {[%clk 0:00:09.3]} 30... Bg7 {[%clk 0:00:26.6]}
31. Qf4 {[%clk 0:00:03.7]} 31... Qxf4 {[%clk 0:00:25.3]} 32. Rxf4 {[%clk
0:00:04.6]} 32... a5 {[%clk 0:00:17.5]} 33. Rh4 {[%clk 0:00:05]} 33... a4 {[%clk
0:00:16.9]} 34. Bxh7+ {[%clk 0:00:03.4]} 34... Kf8 {[%clk 0:00:16.4]} 35. Nd2
{[%clk 0:00:03]} 35... Rxb2+ {[%clk 0:00:13.6]} 36. Kc1 {[%clk 0:00:03]} 36...
a3 {[%clk 0:00:13.1]} 37. Kd1 {[%clk 0:00:02.4]} 37... a2 {[%clk 0:00:13]} 0-1

[Event "*** Titled Tuesday Blitz"]
[Site "Chess.com"]
[Date "2021.03.02"]
[Round "3"]
[White "iturrizaga"]
[Black "DLR7"]
[Result "1-0"]
[WhiteElo "2850"]
[BlackElo "2620"]
[TimeControl "180+1"]
[EndTime "10:28:37 PST"]
[Termination "iturrizaga won by resignation"]

1. c4 {[%clk 0:03:00.9]} 1... e5 {[%clk 0:02:40.1]} 2. g3 {[%clk 0:02:59.2]}
2... Nc6 {[%clk 0:02:39.4]} 3. Bg2 {[%clk 0:02:58.7]} 3... Nf6 {[%clk
0:02:39.2]} 4. Nc3 {[%clk 0:02:59]} 4... Bc5 {[%clk 0:02:35.9]} 5. e3 {[%clk
0:02:58.9]} 5... d6 {[%clk 0:02:35.7]} 6. Nge2 {[%clk 0:02:58.6]} 6... O-O
{[%clk 0:02:34.7]} 7. O-O {[%clk 0:02:57.8]} 7... Bb6 {[%clk 0:02:29.8]} 8. d3
{[%clk 0:02:53.3]} 8... Be6 {[%clk 0:02:24.1]} 9. Nd5 {[%clk 0:02:51.8]} 9...
Bxd5 {[%clk 0:02:09]} 10. cxd5 {[%clk 0:02:52.7]} 10... Ne7 {[%clk 0:02:09.3]}
11. Nc3 {[%clk 0:02:49.8]} 11... c6 {[%clk 0:02:03.5]} 12. dxc6 {[%clk
0:02:45.7]} 12... bxc6 {[%clk 0:02:03.2]} 13. Bd2 {[%clk 0:02:42.7]} 13... Qd7
{[%clk 0:02:01.9]} 14. Rc1 {[%clk 0:02:42.3]} 14... Rac8 {[%clk 0:02:01.1]} 15.
Na4 {[%clk 0:02:38.8]} 15... Rfd8 {[%clk 0:01:57.7]} 16. b4 {[%clk 0:02:33.9]}
16... Qf5 {[%clk 0:01:47.8]} 17. Qb3 {[%clk 0:02:32.6]} 17... Qe6 {[%clk
0:01:41.4]} 18. Qb2 {[%clk 0:02:30.9]} 18... Rc7 {[%clk 0:01:36.6]} 19. Rc2
{[%clk 0:02:27.6]} 19... Rdc8 {[%clk 0:01:36.4]} 20. Rfc1 {[%clk 0:02:27.2]}
20... Qf5 {[%clk 0:01:34.1]} 21. Qb3 {[%clk 0:02:19.9]} 21... Ng4 {[%clk
0:01:33.1]} 22. Rf1 {[%clk 0:02:15.8]} 22... Nf6 {[%clk 0:01:23.6]} 23. h3
{[%clk 0:02:15]} 23... Qe6 {[%clk 0:01:22.2]} 24. Qa3 {[%clk 0:02:08.8]} 24...
e4 {[%clk 0:01:13.4]} 25. d4 {[%clk 0:01:58.6]} 25... Nfd5 {[%clk 0:00:53.6]}
26. Rfc1 {[%clk 0:01:56.6]} 26... h5 {[%clk 0:00:53.1]} 27. h4 {[%clk
0:01:44.7]} 27... Nf6 {[%clk 0:00:35.3]} 28. Nc3 {[%clk 0:01:35.9]} 28... Ned5
{[%clk 0:00:25.7]} 29. Ne2 {[%clk 0:01:29.8]} 29... Ng4 {[%clk 0:00:25.6]} 30.
Qa4 {[%clk 0:01:23.5]} 30... Qd7 {[%clk 0:00:20.6]} 31. Bxe4 {[%clk 0:01:19.6]}
31... Ndf6 {[%clk 0:00:14.8]} 32. Bg2 {[%clk 0:01:12.1]} 32... Qf5 {[%clk
0:00:13.9]} 33. Nf4 {[%clk 0:01:10.6]} 33... g5 {[%clk 0:00:12.5]} 34. hxg5
{[%clk 0:01:09.6]} 34... Qxg5 {[%clk 0:00:13]} 35. Rxc6 {[%clk 0:01:05.7]} 35...
h4 {[%clk 0:00:13.1]} 36. Rxc7 {[%clk 0:01:03.7]} 36... Rxc7 {[%clk 0:00:11.7]}
37. Rxc7 {[%clk 0:01:03.4]} 37... Bxc7 {[%clk 0:00:12.6]} 38. Qxa7 {[%clk
0:00:53.4]} 38... Bd8 {[%clk 0:00:12.8]} 39. Qb8 {[%clk 0:00:51.5]} 39... Ne8
{[%clk 0:00:11.4]} 40. gxh4 {[%clk 0:00:43.7]} 40... Qxh4 {[%clk 0:00:11.5]} 41.
Nh3 {[%clk 0:00:44.2]} 41... Kg7 {[%clk 0:00:10.9]} 42. a4 {[%clk 0:00:40.3]}
42... d5 {[%clk 0:00:05.8]} 43. Qg3 {[%clk 0:00:37.8]} 43... Qh5 {[%clk
0:00:05.1]} 44. f3 {[%clk 0:00:36.6]} 44... f5 {[%clk 0:00:04.7]} 45. fxg4
{[%clk 0:00:34.3]} 45... fxg4 {[%clk 0:00:04.1]} 46. Nf4 {[%clk 0:00:34.6]}
46... Qg5 {[%clk 0:00:03.8]} 47. Ne6+ {[%clk 0:00:34.6]} 1-0

[Event "*** Titled Tuesday Blitz"]
[Site "Chess.com"]
[Date "2021.03.02"]
[Round "3"]
[White "tomsishere"]
[Black "fish7728"]
[Result "1-0"]
[WhiteElo "2491"]
[BlackElo "2199"]
[TimeControl "180+1"]
[EndTime "10:28:37 PST"]
[Termination "tomsishere won by resignation"]

1. Nf3 {[%clk 0:03:00.9]} 1... Nf6 {[%clk 0:02:59.9]} 2. g3 {[%clk 0:02:58.8]}
2... g6 {[%clk 0:03:00.8]} 3. Bg2 {[%clk 0:02:59.5]} 3... Bg7 {[%clk 0:03:01.4]}
4. O-O {[%clk 0:02:59.8]} 4... O-O {[%clk 0:03:01.8]} 5. d4 {[%clk 0:03:00.3]}
5... d6 {[%clk 0:03:02.3]} 6. b3 {[%clk 0:02:59.3]} 6... c5 {[%clk 0:02:58]} 7.
Bb2 {[%clk 0:02:51.3]} 7... Nc6 {[%clk 0:02:56.3]} 8. c4 {[%clk 0:02:49]} 8...
cxd4 {[%clk 0:02:49.2]} 9. Nxd4 {[%clk 0:02:46.7]} 9... Nxd4 {[%clk 0:02:49]}
10. Bxd4 {[%clk 0:02:46.3]} 10... Qc7 {[%clk 0:02:45.5]} 11. Nc3 {[%clk
0:02:42.6]} 11... a6 {[%clk 0:02:45.2]} 12. Bxf6 {[%clk 0:02:35.5]} 12... exf6
{[%clk 0:02:38.3]} 13. Qd2 {[%clk 0:02:35.2]} 13... f5 {[%clk 0:02:31.7]} 14.
Rfd1 {[%clk 0:02:32.7]} 14... Rd8 {[%clk 0:02:25.4]} 15. Rac1 {[%clk 0:02:30.9]}
15... Be6 {[%clk 0:02:22.2]} 16. Nd5 {[%clk 0:02:26.3]} 16... Qc5 {[%clk
0:01:59.1]} 17. b4 {[%clk 0:02:20.8]} 17... Qa7 {[%clk 0:01:58.3]} 18. a4 {[%clk
0:01:56]} 18... Rac8 {[%clk 0:01:57.9]} 19. a5 {[%clk 0:01:52.3]} 19... Kf8
{[%clk 0:01:34.8]} 20. Nb6 {[%clk 0:01:48.4]} 20... Rc7 {[%clk 0:01:34.8]} 21.
c5 {[%clk 0:01:46.8]} 21... d5 {[%clk 0:01:30]} 22. Qf4 {[%clk 0:01:45.7]} 22...
Re7 {[%clk 0:01:25.3]} 23. Bxd5 {[%clk 0:01:36]} 23... Bxd5 {[%clk 0:01:22.8]}
24. Rxd5 {[%clk 0:01:35.8]} 24... Rxd5 {[%clk 0:01:22.2]} 25. Nxd5 {[%clk
0:01:35.7]} 25... Rxe2 {[%clk 0:01:21.5]} 26. Qd6+ {[%clk 0:01:30.3]} 26... Kg8
{[%clk 0:01:19.3]} 27. Qd8+ {[%clk 0:01:28.4]} 27... Bf8 {[%clk 0:01:19.4]} 28.
Nf6+ {[%clk 0:01:23]} 28... Kg7 {[%clk 0:01:18.8]} 29. Nd7 {[%clk 0:01:22.6]}
29... Be7 {[%clk 0:01:13.9]} 30. Qe8 {[%clk 0:01:05.9]} 30... Re6 {[%clk
0:00:49.6]} 31. Qc8 {[%clk 0:00:57.9]} 31... Rc6 {[%clk 0:00:47.1]} 32. Qe8
{[%clk 0:00:42.9]} 32... Re6 {[%clk 0:00:47.3]} 33. Qc8 {[%clk 0:00:37.6]} 33...
Rc6 {[%clk 0:00:46.9]} 34. Qb8 {[%clk 0:00:37.1]} 34... Qxb8 {[%clk 0:00:41.1]}
35. Nxb8 {[%clk 0:00:38]} 35... Rc8 {[%clk 0:00:20.7]} 36. Nd7 {[%clk
0:00:36.4]} 36... Rd8 {[%clk 0:00:20.3]} 37. Ne5 {[%clk 0:00:33.5]} 37... Rd4
{[%clk 0:00:15.4]} 38. c6 {[%clk 0:00:32.1]} 38... bxc6 {[%clk 0:00:12.2]} 39.
Nxc6 {[%clk 0:00:31.7]} 39... Re4 {[%clk 0:00:04.8]} 40. Nxe7 {[%clk 0:00:25.8]}
40... Rxe7 {[%clk 0:00:05.7]} 41. Rc6 {[%clk 0:00:26.1]} 41... Rb7 {[%clk
0:00:05.7]} 42. Rb6 {[%clk 0:00:24.6]} 42... Rc7 {[%clk 0:00:05.7]} 43. Rxa6
{[%clk 0:00:24.1]} 43... Rc1+ {[%clk 0:00:05.9]} 44. Kg2 {[%clk 0:00:24]} 1-0